Cogmind - Beta 15 @@@ ROGUE MODE // 2025.07.20 @ 16:24:27 Player: jumpy Result: Destroyed by S-27 Virus with Autogun Performance ------------- Evolutions (6) 3000 Regions Visited (13) 2600 Robots Destroyed (73) 365 Value Destroyed (2106) 2106 Prototype IDs (7) 140 Alien Tech Used (0) 0 Bonus (20) 20 TOTAL SCORE: 8231 Bonus ------- Follower Combat Kills 20 Cogmind --------- Core Integrity 0/1150 Matter 19/300 Energy 100/100 System Corruption 8% Temperature Cool (0) Movement Core (50) Location -4/Factory Parts ------- > --- POWER (2) -------- (None) > --- PROPULSION (6) --- (None) > --- UTILITY (8) ------ (None) > --- WEAPON (3) ------- (None) > --- INVENTORY (5) ---- Light Antimatter Reactor Improved Linear Gravjet Advanced ECM Suite Improved Propulsion Shielding Hacking Suite Peak State ------------ > --- POWER ------------ Micro Nuclear Core Neutrino Core > --- PROPULSION ------- Gyrokinetic Inverter Gyrokinetic Inverter Gyrokinetic Inverter Gyrokinetic Inverter Gyrokinetic Inverter Cooled Gravmag System > --- UTILITY ---------- Medium Storage Unit Enhanced Optical Array Advanced Sensor Array Improved Signal Interpreter Hacking Suite Hacking Suite > --- WEAPON ----------- Katana > --- INVENTORY -------- Gyrokinetic Inverter Gyrokinetic Inverter Gyrokinetic Inverter Advanced Visual Processing Unit Advanced ECM Suite Improved Propulsion Shielding Heavy Rocket Launcher [Rating: 73] Favorites ----------- Power Micro Nuclear Core Engine Light Deuterium Engine Power Core Micro Nuclear Core Reactor Cold Fusion Reactor Propulsion Improved Aluminum Leg Treads Light Treads Leg Improved Aluminum Leg Wheel Wheel Hover Unit Gyrokinetic Inverter Flight Unit Cooled VTOL Module Utility High-capacity Storage Unit Device Seismic Detector Storage High-capacity Storage Unit Processor Improved Signal Interpreter Hackware Hacking Suite Protection Light Armor Plating Weapon Field Laser Energy Gun Field Laser Ballistic Gun Heavy Assault Rifle Launcher Heavy Rocket Launcher Slashing Weapon Katana Build | -11 -10 -9 -8 -7 -7 -7 -6 -6 -6 -5 -4 -4 -4 ------- Run | Yrd Mat Mat Mat Fac Low Low Fac Low Low Fac Fac Was Fac Slots Evolved 12 | . . 2 2 2 . . 2 . . 2 2 . . Power 1 | . . . . . . . . . . 1 . . . Propulsion 4 | . . 1 1 . . . 2 . . . . . . Utility 6 | . . 1 1 1 . . . . . 1 2 . . Weapon 1 | . . . . 1 . . . . . . . . . Parts Attached 88 | 7 4 9 13 28 . . 7 2 . 10 5 . 3 Power 12 | 1 1 1 3 4 . . . . . 2 . . . Engine 7 | 1 . 1 3 2 . . . . . . . . . Core 4 | . 1 . . 2 . . . . . 1 . . . Reactor 1 | . . . . . . . . . . 1 . . . Propulsion 40 | 2 2 3 4 11 . . 5 . . 6 5 . 2 Treads 5 | 2 . 3 . . . . . . . . . . . Leg 14 | . . . 4 10 . . . . . . . . . Wheel 2 | . 2 . . . . . . . . . . . . Hover 13 | . . . . . . . . . . 6 5 . 2 Flight 6 | . . . . 1 . . 5 . . . . . . Utility 21 | 2 1 2 3 7 . . 2 2 . 1 . . 1 Device 7 | 1 . 1 1 3 . . . 1 . . . . . Storage 4 | 1 1 . 1 . . . 1 . . . . . . Processor 5 | . . . 1 3 . . . 1 . . . . . Hackware 3 | . . . . . . . 1 . . 1 . . 1 Protection 2 | . . 1 . 1 . . . . . . . . . Artifact . | . . . . . . . . . . . . . . Weapon 15 | 2 . 3 3 6 . . . . . 1 . . . Energy Gun 10 | 2 . . 3 5 . . . . . . . . . Energy Cannon . | . . . . . . . . . . . . . . Ballistic Gun 3 | . . 3 . . . . . . . . . . . Ballistic Cannon . | . . . . . . . . . . . . . . Launcher 1 | . . . . . . . . . . 1 . . . Special Weapon . | . . . . . . . . . . . . . . Impact Weapon . | . . . . . . . . . . . . . . Slashing Weapon 1 | . . . . 1 . . . . . . . . . Piercing Weapon . | . . . . . . . . . . . . . . Special Melee Weapon . | . . . . . . . . . . . . . . Unidentified Prototypes 7 | . . 1 2 2 . . . . . 2 . . . Parts Lost 34 | . 4 . . 22 . . . . . 5 1 . 2 Power 7 | . 1 . . 4 . . . . . 2 . . . Propulsion 14 | . 2 . . 8 . . . . . 1 1 . 2 Utility 6 | . . . . 4 . . . . . 2 . . . Weapon 7 | . 1 . . 6 . . . . . . . . . Highest Loss Streak 6 | . 3 . . 6 . . . . . 3 1 . 2 To Critical Strikes . | . . . . . . . . . . . . . . Average Backups 12 | 3 6 8 13 19 19 20 11 10 10 7 2 2 2 Power 1 | . 1 2 3 3 2 2 . . . . . . . Propulsion 3 | 1 1 2 3 5 7 7 2 5 5 3 . . . Utility 4 | . 2 1 4 7 6 7 4 4 4 2 2 2 2 Weapon 1 | . 2 1 2 2 3 3 2 1 1 . . . . Tool/Special . | . . . . . . . . . . . . . . Unused Backups 35 | . . 1 3 9 3 . 8 . . 7 . . 4 Power 5 | . . . 1 1 . . 2 . . . . . 1 Propulsion 8 | . . 1 . 1 . . . . . 6 . . . Utility 13 | . . . 1 6 1 . 1 . . 1 . . 3 Weapon 8 | . . . 1 1 2 . 4 . . . . . . Tool/Special 1 | . . . . . . . 1 . . . . . . Average Slot Usage (%) 83 | . 88 90 99 90 100 100 98 100 100 67 16 15 19 Engine 4 | . 7 9 9 4 . . . . . . . . . Core 3 | . 5 . . 2 7 7 6 6 6 6 . . . Treads 3 | . 23 25 . . . . . . . . . . . Leg 17 | . . . 35 29 30 30 1 . . . . . . Hover 4 | . . . . . . . . . . 25 16 15 16 Flight 2 | . . . . . . . 36 40 40 4 . . . Device 8 | . 14 10 13 10 7 7 6 6 6 4 . . . Storage 7 | . 14 11 9 7 7 7 6 6 6 4 . . . Processor 9 | . . . 8 14 23 23 14 13 13 5 . . . Hackware 1 | . . . . . . . 4 6 6 8 . . 3 Protection 1 | . . 7 4 1 . . . . . . . . . Energy Gun 10 | . 21 2 9 15 15 15 13 13 13 . . . . Ballistic Gun 2 | . . 18 8 . . . . . . . . . . Slashing Weapon 2 | . . . . 2 7 7 6 6 6 4 . . . Peak Build Rating 73 | 7 9 15 27 44 44 44 62 66 66 73 32 18 36 Average Rating 31 | 6 7 11 23 34 43 44 60 64 66 54 20 18 21 On Entrance 29 | . 7 5 15 26 44 44 44 62 66 66 2 18 18 Naked Turns 139 | . . . . . . . . . . 96 . . 43 Heaviest Build 61 | 15 50 58 58 61 53 53 23 23 23 40 . . . Greatest Support 66 | 40 40 60 49 63 55 55 30 30 30 66 34 11 21 Greatest Overweight (x) 15 | . 15 2 1 2 . . . . . 2 . . . Average Overweight (x) . | . 1 . 1 . . . . . . . . . . Largest Inventory Capacity 20 | 8 20 20 20 20 20 20 20 10 10 10 5 5 5 Average Capacity 16 | 7 18 20 20 20 20 20 10 10 10 9 5 5 5 Most Carried 20 | 7 8 14 18 20 20 20 20 10 10 10 4 2 5 Average Carried 12 | 3 6 9 13 19 19 20 9 10 10 7 2 2 2 Final Capacity 20 | 8 20 20 20 20 20 20 10 10 10 5 5 5 5 Final Carried 20 | 7 5 14 18 19 20 20 10 10 10 5 2 2 5 Class Distribution -------------------- 31% | Mutant 17% | Scavenger-Mutant 12% | Assassin 7% | Hacker-Mutant 6% | Scavenger-Skirmisher 6% | Scavenger-Assassin 5% | Scout 5% | Scavenger-Gunner 4% | Gunner Dominant Class ---------------- Mutant | -10/Materials Scavenger-Mutant | -9/Materials Scavenger-Mutant | -8/Materials Scavenger-Skirmisher | -7/Factory Assassin | -7/Lower Caves Assassin | -7/Lower Caves Scout | -6/Factory Scout | -6/Lower Caves Scout | -6/Lower Caves Hacker-Mutant | -5/Factory Mutant | -4/Factory Mutant | -4/Waste Mutant | -4/Factory Resources | -11 -10 -9 -8 -7 -7 -7 -6 -6 -6 -5 -4 -4 -4 ----------- Run | Yrd Mat Mat Mat Fac Low Low Fac Low Low Fac Fac Was Fac Matter Collected 1220 | 270 10 273 265 298 14 . 27 63 . . . . . Remotely . | . . . . . . . . . . . . . . Salvage Created 2504 | 183 118 385 584 1091 . . 27 57 . 59 . . . Parts 142 | 15 3 29 33 45 . . 3 3 . 11 . . . Haulers Intercepted 3 | . . . 2 1 . . . . . . . . . Recyclers Shooed 1 | . . . . . . . . . . 1 . . . Parts Field Recycled . | . . . . . . . . . . . . . . Retrieved Matter . | . . . . . . . . . . . . . . Parts Self-Destructed 3 | . . . . . . . . 3 . . . . . Prevented . | . . . . . . . . . . . . . . Kills | -11 -10 -9 -8 -7 -7 -7 -6 -6 -6 -5 -4 -4 -4 ------- Run | Yrd Mat Mat Mat Fac Low Low Fac Low Low Fac Fac Was Fac Combat Hostiles Destroyed 48 | . 5 10 5 23 . . . 1 . 4 . . . Melee 2 | . 1 . . . . . . 1 . . . . . Guns 40 | . 4 10 5 21 . . . . . . . . . AOE 5 | . . . . 1 . . . . . 4 . . . Classes Destroyed 12 | 3 2 3 2 1 . . . 1 . . . . . Worker 9 | 1 . . . 5 . . 1 . . 2 . . . Builder 4 | . . . 3 . . . . . . 1 . . . Tunneler 5 | 5 . . . . . . . . . . . . . Hauler 3 | . . . 2 1 . . . . . . . . . Recycler 2 | 1 . . 1 . . . . . . . . . . Watcher 2 | . . 1 1 . . . . . . . . . . Swarmer 17 | . 3 4 . 6 . . . . . 4 . . . Grunt 15 | . 2 3 1 9 . . . . . . . . . Duelist 4 | . . 1 . 3 . . . . . . . . . Sentry 7 | . . 2 4 1 . . . . . . . . . Hunter 1 | . . . . . . . . 1 . . . . . Programmer 4 | . . . . 4 . . . . . . . . . Best Kill Streak 7 | 3 4 4 5 6 . . 1 1 . 7 . . . Combat Bots Only 6 | . 4 4 1 6 . . . 1 . 4 . . . Max Kills in Single Turn 6 | 1 1 1 1 6 . . 1 1 . 5 . . . Gunslinging . | . . . . . . . . . . . . . . Exploded 4 | . . . . 1 . . . . . 4 . . . Melee 1 | . 1 . . . . . . 1 . . . . . Uniques/NPCs Destroyed . | . . . . . . . . . . . . . . Combat | -11 -10 -9 -8 -7 -7 -7 -6 -6 -6 -5 -4 -4 -4 -------- Run | Yrd Mat Mat Mat Fac Low Low Fac Low Low Fac Fac Was Fac Hostile Shots Fired 643 | . 94 55 31 228 9 . . . . 103 27 1 95 Missed 225 | . 24 8 9 84 4 . . . . 44 14 1 37 Hits 418 | . 70 47 22 144 5 . . . . 59 13 . 58 Melee 14 | . . 4 . 10 . . . . . . . . . Projectile 404 | . 70 43 22 134 5 . . . . 59 13 . 58 AOE 1 | . . . . . . . . . . 1 . . . Critical Strikes 17 | . . 1 . 10 . . . . . 2 . . 4 Damage Taken 6623 | . 768 563 313 2329 86 . . . . 1236 186 . 1142 Core 2563 | . 227 56 32 299 . . . . . 786 111 . 1052 Absorbed by Shields . | . . . . . . . . . . . . . . Regen/Repaired (Parts) 142 | . . . . 142 . . . . . . . . . Core Remaining (%) 66 | 100 9 86 94 . . 57 . . 100 21 . . . Volleys Fired 194 | 18 17 34 42 81 . . . . . 2 . . . Largest 3 | 2 2 2 2 3 . . . . . 1 . . . Hottest 189 | 100 100 70 126 189 . . . . . 39 . . . Shots Fired 356 | 36 31 67 84 136 . . . . . 2 . . . Gun 354 | 36 31 67 84 136 . . . . . . . . . Cannon . | . . . . . . . . . . . . . . Launcher 2 | . . . . . . . . . . 2 . . . Special . | . . . . . . . . . . . . . . Kinetic 91 | . . 51 40 . . . . . . . . . . Thermal 246 | 36 31 16 44 119 . . . . . . . . . Explosive 2 | . . . . . . . . . . 2 . . . Electromagnetic 17 | . . . . 17 . . . . . . . . . Robot Hit Streak 18 | 5 5 7 6 18 . . . . . . . . . Robot Miss Streak 6 | 2 2 3 5 6 . . . . . . . . . Penetration Max . | . . . . . . . . . . . . . . Secondary Targets 6 | . 2 1 1 2 . . . . . . . . . Max Gunslinging Chain 1 | . 1 1 1 1 . . . . . . . . . Shots Hit Robots 224 | 20 21 46 44 89 . . 2 2 . . . . . Core Hits 109 | 8 8 18 19 49 . . 1 1 . 4 . . 1 Critical Kills . | . . . . . . . . . . . . . . Critical Parts Destroyed . | . . . . . . . . . . . . . . Critical Strikes 9 | 1 3 . 2 2 . . . 1 . . . . . Burn 7 | 1 3 . 2 1 . . . . . . . . . Sever 2 | . . . . 1 . . . 1 . . . . . Melee Attacks 19 | . . . . 9 . . 3 3 . 4 . . . Impact . | . . . . . . . . . . . . . . Slashing 19 | . . . . 9 . . 3 3 . 4 . . . Piercing . | . . . . . . . . . . . . . . Sneak Attacks 3 | . . . . 1 . . 2 . . . . . . Combat Hostiles . | . . . . . . . . . . . . . . Follow-up Attacks . | . . . . . . . . . . . . . . Damage Inflicted 5202 | 263 287 621 771 2468 . . 141 64 . 581 . . 6 Guns 3483 | 263 263 621 771 1565 . . . . . . . . . Cannons . | . . . . . . . . . . . . . . Explosions 1295 | . . . . 714 . . . . . 581 . . . Melee 393 | . . . . 188 . . 141 64 . . . . . Ramming 31 | . 24 . . 1 . . . . . . . . 6 Kinetic 807 | . . 494 313 . . . . . . . . . . Thermal 3511 | 263 263 127 458 2192 . . . . . 208 . . . Explosive 373 | . . . . . . . . . . 373 . . . Electromagnetic 87 | . . . . 87 . . . . . . . . . Impact . | . . . . . . . . . . . . . . Slashing 393 | . . . . 188 . . 141 64 . . . . . Piercing . | . . . . . . . . . . . . . . Highest Corruption 10 | . 2 . . 2 2 2 . . . 10 . . 8 Average Corruption 2 | . 2 . . 1 2 2 . . . 6 . . 5 Corruption Purged . | . . . . . . . . . . . . . . Corruption Blocked . | . . . . . . . . . . . . . . Effects 23 | . 3 . . 10 5 . . . . 5 . . . Message Errors 8 | . 2 . . 3 . . . . . 3 . . . Matter Fused 3 | . 1 . . 1 1 . . . . . . . . Heat Flow Errors 6 | . . . . 2 3 . . . . 1 . . . Energy Discharges 2 | . . . . 2 . . . . . . . . . Data Loss (minor) 1 | . . . . . 1 . . . . . . . . Data Loss (major) 1 | . . . . 1 . . . . . . . . . Misfires 1 | . . . . 1 . . . . . . . . . Misdirections 1 | . . . . . . . . . . 1 . . . Overload Shots . | . . . . . . . . . . . . . . Overflow Damage 341 | . . . . 216 . . . . . 125 . . . Projectiles . | . . . . . . . . . . . . . . Explosions 299 | . . . . 174 . . . . . 125 . . . Melee 42 | . . . . 42 . . . . . . . . . Knockbacks 1 | . 1 . . . . . . . . . . . . Impact 1 | . 1 . . . . . . . . . . . . Kinetic . | . . . . . . . . . . . . . . Secondary . | . . . . . . . . . . . . . . Self-Inflicted Damage 16 | . . . . . . . . . . 14 . . 2 Shots 1 | . . . . . . . . . . 1 . . . Rammed 8 | . 4 . . . . . . . . . . . 4 Targets Rammed 10 | . 5 . . 1 . . . . . . . . 4 Kicked 1 | . . . . 1 . . . . . . . . . Crushed 1 | . 1 . . . . . . . . . . . . Highest Temperature 459 | 156 388 27 445 380 262 . . . . 459 . . . Average Temperature 86 | 45 164 6 49 136 117 . . . . 60 . . . Received Heat Transfer 1416 | . 351 147 117 726 12 . . . . 36 . . 27 Effects 13 | . 3 . 3 6 . . . . . 1 . . . Interference 11 | . 2 . 3 6 . . . . . . . . . Matter Decay 1 | . . . . . . . . . . 1 . . . Short Circuit 1 | . 1 . . . . . . . . . . . . Siege Activations . | . . . . . . . . . . . . . . Martial Activations . | . . . . . . . . . . . . . . Shielding Activations . | . . . . . . . . . . . . . . Robots Disrupted . | . . . . . . . . . . . . . . Combat Hostiles . | . . . . . . . . . . . . . . Robots Corrupted . | . . . . . . . . . . . . . . Combat Hostiles . | . . . . . . . . . . . . . . Parts Fried . | . . . . . . . . . . . . . . Impact Corruptions . | . . . . . . . . . . . . . . Robots Melted 1 | . . . . 1 . . . . . . . . . Combat Hostiles 1 | . . . . 1 . . . . . . . . . Parts Melted 18 | 1 1 . 1 15 . . . . . . . . . Heat Transferred 6988 | 851 999 370 1147 3471 . . . . . 150 . . . Parts Sabotaged . | . . . . . . . . . . . . . . Parts Stolen . | . . . . . . . . . . . . . . Parts Stripped . | . . . . . . . . . . . . . . Power Chain Reactions . | . . . . . . . . . . . . . . Alert | -11 -10 -9 -8 -7 -7 -7 -6 -6 -6 -5 -4 -4 -4 ------- Run | Yrd Mat Mat Mat Fac Low Low Fac Low Low Fac Fac Was Fac Maximum Alert Level 1 | . . . . 1 . . . . . 1 . . . Low Security (%) 85 | 100 100 100 100 59 . . 100 . . 95 100 100 100 Level 1 14 | . . . . 40 . . . . . 4 . . . Level 2 . | . . . . . . . . . . . . . . Level 3 . | . . . . . . . . . . . . . . Level 4 . | . . . . . . . . . . . . . . Level 5 . | . . . . . . . . . . . . . . High Security . | . . . . . . . . . . . . . . Max Security . | . . . . . . . . . . . . . . Peak Influence 378 | 5 80 139 47 378 . . 5 . . 214 42 . 20 Initial 42 | . . . 8 . . . . . . . 42 . . Average 72 | 1 21 77 9 153 . . . . . 63 13 . 3 Influence Increases 1786 | 35 130 249 188 835 . . 5 32 . 250 2 . 60 Destroy 0b10 Robot/C 980 | . 100 200 100 460 . . . 20 . 100 . . . Destroy 0b10 Robot/NC 130 | 35 . 5 35 30 . . 5 . . 20 . . . Destroy Leader 230 | . 20 42 46 102 . . . 10 . 10 . . . Allied During Kill 8 | . . . . . . . . 2 . 6 . . . Successful Hack 16 | . 10 . 4 . . . . . . . 2 . . Disable Machine 240 | . . . . 210 . . . . . 30 . . . Destroy Structure 92 | . . 2 3 33 . . . . . 54 . . . Partial Spotted 30 | . . . . . . . . . . . . . 30 Lose Combat Pursuer 60 | . . . . . . . . . . 30 . . 30 Influence Decreases 1781 | 35 130 228 209 542 293 . 5 32 . 162 90 . 55 Entered New Map 168 | . . . 13 . 109 . . . . . 46 . . Time Decay 1332 | 35 110 228 196 351 184 . 5 32 . 112 44 . 35 Lost Part 281 | . 20 . . 191 . . . . . 50 . . 20 Squads Dispatched 17 | . 1 1 . 7 . . 1 . . 5 1 . 1 Investigation 4 | . . . . 2 . . . . . . 1 . 1 Extermination 5 | . . . . 3 . . . . . 2 . . . Reinforcement 8 | . 1 1 . 2 . . 1 . . 3 . . . Assault . | . . . . . . . . . . . . . . Garrison . | . . . . . . . . . . . . . . Intercept . | . . . . . . . . . . . . . . Searches Triggered . | . . . . . . . . . . . . . . Construction Impeded 1 | . . . . . . . . . . 1 . . . Haulers Reinforced 1 | . . . . . . . 1 . . . . . . Active Scanning Responses . | . . . . . . . . . . . . . . Cargo Convoy Interrupts . | . . . . . . . . . . . . . . Stealth | -11 -10 -9 -8 -7 -7 -7 -6 -6 -6 -5 -4 -4 -4 --------- Run | Yrd Mat Mat Mat Fac Low Low Fac Low Low Fac Fac Was Fac Distress Signals 11 | . 1 3 3 1 . . . . . 3 . . . Communications Jammed . | . . . . . . . . . . . . . . Distress Signals . | . . . . . . . . . . . . . . Times Spotted 117 | . 10 16 15 30 1 . . 2 . 19 4 6 14 Peak Tracking Total 12 | . 5 5 3 8 1 . . 2 . 9 4 6 12 Tactical Retreats 4 | . . . . . . . . . . 2 . . 2 Traps | -11 -10 -9 -8 -7 -7 -7 -6 -6 -6 -5 -4 -4 -4 ------- Run | Yrd Mat Mat Mat Fac Low Low Fac Low Low Fac Fac Was Fac Traps Triggered 7 | . 1 . . 1 . . . . . 2 2 . 1 Indirectly . | . . . . . . . . . . . . . . Trap Hack Attempts . | . . . . . . . . . . . . . . Triggered . | . . . . . . . . . . . . . . Disarmed . | . . . . . . . . . . . . . . Reprogrammed . | . . . . . . . . . . . . . . Reused . | . . . . . . . . . . . . . . Traps Extracted . | . . . . . . . . . . . . . . Installed . | . . . . . . . . . . . . . . Triggered . | . . . . . . . . . . . . . . Machines | -11 -10 -9 -8 -7 -7 -7 -6 -6 -6 -5 -4 -4 -4 ---------- Run | Yrd Mat Mat Mat Fac Low Low Fac Low Low Fac Fac Was Fac Machines Disabled 16 | . . . . 14 . . . . . 2 . . . Max in Single Turn 13 | . . . . 13 . . . . . 1 . . . Garrison Access 1 | . . . . . . . . . . . . . 1 Machines Repaired . | . . . . . . . . . . . . . . Machines Dismantled . | . . . . . . . . . . . . . . Machines Sabotaged . | . . . . . . . . . . . . . . Overloaded Fab Kills . | . . . . . . . . . . . . . . Hacking | -11 -10 -9 -8 -7 -7 -7 -6 -6 -6 -5 -4 -4 -4 --------- Run | Yrd Mat Mat Mat Fac Low Low Fac Low Low Fac Fac Was Fac Machines Accessed 13 | . 1 . 2 4 . . . . . 1 1 . 4 Terminals 6 | . 1 . 2 1 . . . . . 1 . . 1 Fabricators 2 | . . . . . . . . . . . . . 2 Repair Stations 2 | . . . . 2 . . . . . . . . . Recycling Units . | . . . . . . . . . . . . . . Scanalyzers 1 | . . . . . . . . . . . 1 . . Garrison Access 2 | . . . . 1 . . . . . . . . 1 Total Hacks 30 | . 2 . 8 5 . . . . . 3 3 . 9 Successful 13 | . 2 . 4 2 . . . . . 1 2 . 2 Failed 17 | . . . 4 3 . . . . . 2 1 . 7 Catastrophic 2 | . . . . 1 . . . . . . . . 1 Database Lockouts . | . . . . . . . . . . . . . . Manual 14 | . 1 . 3 4 . . . . . 3 . . 3 Terminals 19 | . 2 . 8 2 . . . . . 3 . . 4 Fabricators 2 | . . . . . . . . . . . . . 2 Repair Stations 2 | . . . . 2 . . . . . . . . . Recycling Units . | . . . . . . . . . . . . . . Scanalyzers 3 | . . . . . . . . . . . 3 . . Garrison Access 4 | . . . . 1 . . . . . . . . 3 Terminal Hacks 3 | . 1 . 2 . . . . . . . . . . Robot Analysis 1 | . 1 . . . . . . . . . . . . Terminal Index 1 | . . . 1 . . . . . . . . . . Zone Layout 1 | . . . 1 . . . . . . . . . . Fabricator Hacks . | . . . . . . . . . . . . . . Repair Station Hacks . | . . . . . . . . . . . . . . Recycling Unit Hacks . | . . . . . . . . . . . . . . Scanalyzer 2 | . . . . . . . . . . . 2 . . Insert Component 1 | . . . . . . . . . . . 1 . . Analyze 1 | . . . . . . . . . . . 1 . . Garrison Access Hacks 1 | . . . . . . . . . . . . . 1 Seal Access 1 | . . . . . . . . . . . . . 1 Unauthorized Hacks 7 | . 1 . 2 2 . . . . . 1 . . 1 Terminals 5 | . 1 . 2 . . . . . . 1 . . 1 Botnet 5 | . 1 . 2 . . . . . . 1 . . 1 Fabricators . | . . . . . . . . . . . . . . Repair Stations 2 | . . . . 2 . . . . . . . . . Patch 2 | . . . . 2 . . . . . . . . . Recycling Units . | . . . . . . . . . . . . . . Scanalyzers . | . . . . . . . . . . . . . . Garrison Access . | . . . . . . . . . . . . . . Data Cores Recovered . | . . . . . . . . . . . . . . Used . | . . . . . . . . . . . . . . Hacking Detections 11 | . 1 . 2 2 . . . . . 1 1 . 4 Full Trace Events 2 | . . . . . . . . . . . 1 . 1 Feedback Events . | . . . . . . . . . . . . . . Feedback Blocked . | . . . . . . . . . . . . . . Robot Schematics Acquired . | . . . . . . . . . . . . . . Robots Built . | . . . . . . . . . . . . . . Authchips . | . . . . . . . . . . . . . . Time . | . . . . . . . . . . . . . . Total Robot Build Rating . | . . . . . . . . . . . . . . Part Schematics Acquired 1 | . . . . . . . . . . . 1 . . Parts Built . | . . . . . . . . . . . . . . Authchips . | . . . . . . . . . . . . . . Time . | . . . . . . . . . . . . . . Total Part Build Rating . | . . . . . . . . . . . . . . Parts Repaired . | . . . . . . . . . . . . . . Time . | . . . . . . . . . . . . . . Parts Recycled . | . . . . . . . . . . . . . . Recycled Matter . | . . . . . . . . . . . . . . Retrieved Matter . | . . . . . . . . . . . . . . Retrieved Components . | . . . . . . . . . . . . . . Parts Scanalyzed 1 | . . . . . . . . . . . 1 . . Part Schematics Acquired 1 | . . . . . . . . . . . 1 . . Parts Damaged 1 | . . . . . . . . . . . 1 . . Bothacking | -11 -10 -9 -8 -7 -7 -7 -6 -6 -6 -5 -4 -4 -4 ------------ Run | Yrd Mat Mat Mat Fac Low Low Fac Low Low Fac Fac Was Fac Used RIF Installer . | . . . . . . . . . . . . . . Robots Hacked . | . . . . . . . . . . . . . . Non-combat . | . . . . . . . . . . . . . . Combat . | . . . . . . . . . . . . . . Robot Hacks Applied . | . . . . . . . . . . . . . . Relay Couplers Released . | . . . . . . . . . . . . . . Fabnet Peak Effective % . | . . . . . . . . . . . . . . Robots Rewired 1 | . . . . . . . 1 . . . . . . Allies Hacked . | . . . . . . . . . . . . . . Hacks Repelled . | . . . . . . . . . . . . . . Allies | -11 -10 -9 -8 -7 -7 -7 -6 -6 -6 -5 -4 -4 -4 -------- Run | Yrd Mat Mat Mat Fac Low Low Fac Low Low Fac Fac Was Fac Total Allies 1 | . . . . . . . 1 . . . . . . Largest Group 1 | . . . . . . . 1 1 1 1 . . . Highest-Rated Group 25 | . . . . . . . 25 22 22 22 . . . Highest-Rated Ally 25 | . . . . . . . 25 22 22 22 . . . Total Orders . | . . . . . . . . . . . . . . Ally Attacks 3 | . . . . . . . . 2 . 1 . . . Total Damage 183 | . . . . . . . . 45 . 138 . . . Kills 2 | . . . . . . . . . . 2 . . . Allies Corrupted . | . . . . . . . . . . . . . . Allies Melted . | . . . . . . . . . . . . . . Intel | -11 -10 -9 -8 -7 -7 -7 -6 -6 -6 -5 -4 -4 -4 ------- Run | Yrd Mat Mat Mat Fac Low Low Fac Low Low Fac Fac Was Fac Active Infowar (turns) 4419 | 143 161 501 812 1479 435 118 121 192 9 448 . . . Optics 1939 | . . . . 973 435 118 121 192 9 91 . . . Sensors 1810 | . . . . 487 435 118 121 192 9 448 . . . Terrain 431 | . . . . 431 . . . . . . . . . Seismic 2123 | 143 161 501 812 506 . . . . . . . . . Robot Analysis Total 1 | . 1 . . . . . . . . . . . . Derelict Logs Recovered 4 | . . . . . 2 . . 2 . . . . . Drone Launches . | . . . . . . . . . . . . . . Drone Recoveries . | . . . . . . . . . . . . . . Exploration | -11 -10 -9 -8 -7 -7 -7 -6 -6 -6 -5 -4 -4 -4 ------------- Run | Yrd Mat Mat Mat Fac Low Low Fac Low Low Fac Fac Was Fac Turns Passed 5546 | 262 356 502 812 1645 435 118 121 192 9 566 159 89 280 Spaces Moved 4188 | 123 136 237 320 865 353 97 237 397 21 697 202 119 384 Core 280 | 6 3 . . . . . . . . 193 . . 78 Treads 420 | 117 108 195 . . . . . . . . . . . Legs 1635 | . . . 320 865 353 97 . . . . . . . Wheels 67 | . 25 42 . . . . . . . . . . . Hover 1055 | . . . . . . . . . . 428 202 119 306 Flight 731 | . . . . . . . 237 397 21 76 . . . Fastest Speed 20 | 50 110 110 190 120 122 122 20 20 20 20 51 70 50 Average Speed 102 | 154 213 154 190 150 122 122 20 20 20 55 68 70 65 Slowest Speed 800 | 160 800 320 190 260 122 122 20 20 20 150 70 70 70 Overloaded Moves . | . . . . . . . . . . . . . . Propulsion Burnouts . | . . . . . . . . . . . . . . Robots Hopped 3 | . . . . . . . 3 . . . . . . Potential Cave-ins . | . . . . . . . . . . . . . . Cave-ins Triggered . | . . . . . . . . . . . . . . Exploration Rate (%) 29 | 8 42 20 28 26 68 17 8 66 7 23 9 74 14 Regions Visited 13 Branch Regions 4 Pre-discovered Areas 2 | . . . . . 1 . . 1 . . . . . Known Exits Taken 6 | . . . . 1 1 1 1 1 1 . . . . Unknown Exits Taken 5 | 1 1 1 1 . . . . . . 1 . . . Scrap Searched 4 | . . . . . 2 . . 2 . . . . . Spaces Dug 4 | . . . . 1 . . . . . 3 . . . Terrain Destroyed 82 | . . . . 45 . . . . . 37 . . . Melee 4 | . . . . 1 . . . . . 3 . . . Projectile 1 | . . . . 1 . . . . . . . . . AOE 77 | . . . . 43 . . . . . 34 . . . Terrain Rammed . | . . . . . . . . . . . . . . Walls Destroyed . | . . . . . . . . . . . . . . Machines Disabled . | . . . . . . . . . . . . . . Actions | -11 -10 -9 -8 -7 -7 -7 -6 -6 -6 -5 -4 -4 -4 --------- Run | Yrd Mat Mat Mat Fac Low Low Fac Low Low Fac Fac Was Fac Total 5049 | 155 164 303 444 1075 359 96 307 504 24 864 221 124 409 Wait 398 | 1 1 3 48 46 . . 32 102 4 131 10 6 14 Move 4171 | 122 135 236 319 864 352 96 231 396 20 696 202 118 384 Hop 2 | . . . . . . . 2 . . . . . . Pick Up 85 | 7 . 12 12 29 4 . 13 . . 5 . . 3 Fast Attach 38 | 7 . 5 1 9 . . 1 . . 7 4 . 4 Attach 38 | . 2 2 5 17 . . 6 . . 3 3 . . Detach 2 | . . . . . . . . . . 1 1 . . Swap 29 | . 2 5 8 5 . . 1 2 . 6 . . . Drop 57 | . 2 6 9 14 3 . 12 1 . 9 1 . . Fire 194 | 18 17 34 42 81 . . . . . 2 . . . Melee 19 | . . . . 9 . . 3 3 . 4 . . . Ram 4 | . . . . . . . . . . . . . 4 Kick 1 | . . . . 1 . . . . . . . . . Crush 5 | . 5 . . . . . . . . . . . . Escape Stasis . | . . . . . . . . . . . . . . Rewire 6 | . . . . . . . 6 . . . . . . Trap . | . . . . . . . . . . . . . . Miscellaneous . | . . . . . . . . . . . . . . Route ------- -11/Scrapyard -10/Materials (discovered 2 exits: [*Mat] / [*Min]) -9/Materials -8/Materials -7/Factory (discovered 2 exits: *Low x2) -7/Lower Caves -7/Lower Caves -6/Factory (discovered 2 exits: Fac / *Low) -6/Lower Caves -6/Lower Caves -5/Factory -4/Factory -4/Waste -4/Factory History --------- Turn | Location | Event 15 | -11/Scrapyard | Discovered new exit (range 16) 263 | -11/Scrapyard | Entered Materials 302 | -10/Materials | Build established: Mutant 492 | -10/Materials | Discovered new exit (range 9) 579 | -10/Materials | Core integrity fell below 50% 600 | -10/Materials | Core integrity fell below 20% 615 | -10/Materials | Discovered new exit (range 4) 616 | -10/Materials | Lost 3 parts (1p2n) 619 | -10/Materials | Entered another Materials area 619 | -9/Materials | Evolved 2 slots: Propulsion x1, Utility x1 1029 | -9/Materials | Build established: Scavenger-Mutant 1114 | -9/Materials | Discovered new exit (range 5) 1121 | -9/Materials | Entered another Materials area 1121 | -8/Materials | Evolved 2 slots: Propulsion x1, Utility x1 1786 | -8/Materials | Build established: Mutant 1915 | -8/Materials | Discovered new exit (range 10) 1933 | -8/Materials | Entered Factory 1933 | -7/Factory | Evolved 2 slots: Utility x1, Weapon x1 2285 | -7/Factory | Lost 5 parts (1p1n2u1w) 2487 | -7/Factory | Lost 3 parts (2n1u) 2548 | -7/Factory | Lost 6 parts (1p3n2w) 2974 | -7/Factory | Build established: Scavenger-Skirmisher 3085 | -7/Factory | Lost 4 parts (2n1u1w) 3305 | -7/Factory | Discovered new exit (range 8) 3316 | -7/Factory | Identified exit to Lower Caves 3387 | -7/Factory | Build established: Scavenger-Assassin 3555 | -7/Factory | Discovered exit to Lower Caves (range 19) 3578 | -7/Factory | Entered Lower Caves 3680 | -7/Lower Caves | Learned 8 Factory zone layouts 3710 | -7/Lower Caves | Encountered a Warlord checkpoint 3752 | -7/Lower Caves | Build established: Assassin 3999 | -7/Lower Caves | Discovered new exit (range 9) 4004 | -7/Lower Caves | Spotted B-75 Beast 4012 | -7/Lower Caves | Identified exit to Lower Caves 4013 | -7/Lower Caves | Entered another Lower Caves area 4120 | -7/Lower Caves | Discovered new exit (range 8) 4128 | -7/Lower Caves | Identified exit to Factory 4131 | -7/Lower Caves | Entered Factory 4131 | -6/Factory | Evolved 2 slots: Propulsion x2 4132 | -6/Factory | Identified exit to Factory 4247 | -6/Factory | Discovered new exit (range 5) 4248 | -6/Factory | Identified exit to Lower Caves 4252 | -6/Factory | Entered Lower Caves 4252 | -6/Lower Caves | Accompanied by 1 ally 4267 | -6/Lower Caves | Learned location of Extension (-5) 4371 | -6/Lower Caves | Learned Factory terminal intel 4439 | -6/Lower Caves | Discovered new exit (range 10) 4444 | -6/Lower Caves | Identified exit to Lower Caves 4444 | -6/Lower Caves | Entered another Lower Caves area 4444 | -6/Lower Caves | Accompanied by 1 ally 4447 | -6/Lower Caves | Discovered exit to Factory (range 7) 4453 | -6/Lower Caves | Entered Factory 4453 | -5/Factory | Accompanied by 1 ally 4453 | -5/Factory | Evolved 2 slots: Power x1, Utility x1 4454 | -5/Factory | Loaded intel: 27 terminal locations 4786 | -5/Factory | Build established: Hacker-Mutant 4822 | -5/Factory | P-70 Sage assimilated allied Slicer 5a 4923 | -5/Factory | Released all parts (9) 4937 | -5/Factory | Lost 3 parts (1n2u) 4948 | -5/Factory | Core integrity fell below 50% 4966 | -5/Factory | System corruption reached 10% 5016 | -5/Factory | Discovered new exit (range 8) 5019 | -5/Factory | Entered another Factory area 5019 | -4/Factory | Evolved 2 slots: Utility x2 5178 | -4/Factory | Manually triggered Chute Trap 5178 | -4/Factory | Sucked down chute 5178 | -4/Factory | Entered Waste 5184 | -4/Waste | Spotted C-40 Crusher 5199 | -4/Waste | Spotted C-40 Crusher 5200 | -4/Waste | Spotted C-40 Crusher 5202 | -4/Waste | Build established: Mutant 5205 | -4/Waste | Spotted C-40 Crusher 5209 | -4/Waste | Spotted C-40 Crusher 5238 | -4/Waste | Spotted C-40 Crusher 5259 | -4/Waste | Discovered new exit (range 12) 5267 | -4/Waste | Entered Factory 5504 | -4/Factory | Released all parts (3) 5528 | -4/Factory | Core integrity fell below 50% 5542 | -4/Factory | Core integrity fell below 20% 5547 | -4/Factory | Destroyed by S-27 Virus with Autogun Last Messages --------------- 05504_ Released Hacking Suite. 05504_ Released Gyrokinetic Inverter. 05525_ Acquired Lgt. Antimatter Reactor. 05527_ Slammed into S-27 Virus. 05534_ S-27 Virus IFF system glitched. 05534_ P-70 Sage resets S-27 Virus, system corruption cleaned. 05538_ Slammed into P-70 Sage. 05538_ U-05 Engineer lays Concrete. 05539_ P-70 Sage resets P-70 Sage, system corruption cleaned. 05539_ U-05 Engineer lays Concrete. 05542_ K-01 Serf collects debris. 05542_ U-05 Engineer lays Concrete. 05542_ Assembly Bed disabled. 05543_ U-05 Engineer lays Concrete. 05544_ P-70 Sage resets P-70 Sage, system corruption cleaned. 05545_ U-05 Engineer lays Concrete. 05545_ K-01 Serf collects debris. 05545_ U-05 Engineer lays Concrete. 05546_ K-01 Serf collects debris. 05547_ U-05 Engineer lays Concrete. Map ----- +----------------------------------------------------+ | ????????????# ???????? # #????? | | ????????????# """ """ #????? ! # #????? | | ????????????# """ """ #?????? # #????? | | ????????????# ! """ """ # """"""" # #????? | | ????????????# # """"""" # #????? | | ????????????# """ """ # """"""" # # " | | ????????????# """ """ # """"""" + / " | | ????????????# """ """ # # # ! | | ????????????# # ! # # " | | ????????????###+####/#############+#### #? " | | ??????????????# #?? " | | ???????######## p #??? | | ???????# # pp #???## | | ???????# # #????? | | ???????# """ + s #????? | | ???????# """ #######+## ss k #????? | | ???????# """ ## s #????? | | ???????# ## """ uu ???? | | ???????######### "R ! u ??? | | ???????????????# """ =# uu ???? | | ???????????????# # ???? | | ???????????????# """ + " "" ????? | | ???????????????#! """ # """" ###+##??????? | | ???????????????# """ # """" #???????????? | | ???????????????# # """" ""#???????????? | | ???????????????##########@ """" Y?????????????? | | ????????????????????????# """" ????????????????? | | ????????????????????????+ A ???????????????? | | ????????????????????????# ?????????????? | | ????????????????????????# ###+##?????????????? | | ????????????????????????# #??????????????????? | | ????????????????????????# #??????????????????? | | ????????????????????????# #??????????????????? | | ????????????????????????# #??????????????????? | | ????????????????????????? #??????????????????? | | ????????????????????????? #??????????????????? | | ????????????????????????? R #??????????????????? | | ????????????????????????? #??????????????????? | | ????????????????????????? ??????????????????? | | ????????????????????????? k???????????????????? | | ????????????????????????? ?????????????????????? | | ?????????????????????????????????????????????????? | | ?????????????????????????????????????????????????? | | ?????????????????????????????????????????????????? | | ?????????????????????????????????????????????????? | | ?????????????????????????????????????????????????? | | ?????????????????????????????????????????????????? | | ?????????????????????????????????????????????????? | | ?????????????????????????????????????????????????? | | ?????????????????????????????????????????????????? | +----------------------------------------------------+ Best States ------------- Heat Dissipation 48 Energy Generation 29 Energy Capacity 365 Matter Stores 300 Matter Capacity 300 Sight Range 22 Robot Scan Range 16 Terrain Scan Range 16 Terrain Scan Density 110 Armor Coverage 150 Evasion (%) 66 Targeting Accuracy 6 Recoil Reduction 3 Offensive Hacking 20 Item Schematics ----------------- Imp. Linear Gravjet | -4/Factory | Scanalyzed Robot Schematics ------------------ None Fabricated ------------ Nothing Repaired ---------- Nothing Alien Tech Used ----------------- None Achievements -------------- None Challenges ------------ None Game ------ Seed RestorationSmartbombDevice Manual? 0 Play Time 00:37:54 Cumulative 172.3 hours Start 2025.07.20 @ 15:47:09 End 2025.07.20 @ 16:24:27 Sessions 1 Manual Loads 0 Difficulty Rogue Special Mode None Game No. 419 Rogue 419 Adventurer 0 Explorer 0 Win Type - Total 7 Types 5/0/1/1/0/0/0/0/0/0 Lore% 71 Gallery% 63 Achievement% 50 Wizard Run 0 Options --------- Layout 0 ASCII 0 Keyboard 0 Movement Numpad Keybinds 0 Fullscreen 2 Font 18/Terminus Map View 76x50 Zoom Use 0% Tactical HUD 1 Map Filters NONE Filters SATURATION(100) Steam 1 RUN: 4c648be2-275e-46b7-8911-9c63192b6e6e